bitfinex-derivatives/quotes_ETHF0:USTF0_20250125
["timestamp","ask_amount","ask_price","bid_price","bid_amount"]
[1737823664922,1.44082,3335.1,3334.8,0.47985]
[1737823665122,0.961,3335.1,3334.8,0.47985]
[1737823665324,0.961,3335.1,3334.9,0.47984]
[1737823666022,0.961,3335.1,3334.8,0.47984]
[1737823666221,0.961,3335.1,3335.0,0.47983]
[1737823666426,0.961,3335.1,3334.9,0.47983]
[1737823667026,0.961,3335.1,3334.9,0.47984]
[1737823667426,3.2078,3335.6,3335.0,0.34904179]
[1737823667624,0.96549216,3335.4,3335.3,0.47978]
[1737823667928,0.00449216,3335.4,3335.3,1.27988266]
[1737823668730,0.00449216,3335.4,3335.3,1.72756708]
[1737823669628,0.00449216,3335.4,3335.3,1.72745644]
[1737823669929,0.00449216,3335.4,3335.3,1.27977202]
[1737823671429,0.00449216,3335.4,3335.3,0.93095095]
[1737823671629,0.00449216,3335.4,3335.3,1.27958922]
[1737823672129,0.00449216,3335.4,3335.3,1.72674421]
[1737823672424,0.00449216,3335.4,3335.3,1.27958922]
[1737823673419,0.00449216,3335.4,3335.3,1.27930225]
[1737823673928,0.00449216,3335.4,3335.3,0.8281313]
[1737823674229,0.48426216,3335.4,3335.3,0.47978]
[1737823674630,0.00449216,3335.4,3335.3,0.47978]
[1737823676630,0.00449216,3335.4,3335.3,0.82800105]
[1737823677332,0.00449216,3335.4,3335.3,0.47978]
[1737823677525,0.00449216,3335.4,3335.3,0.99978]
[1737823680533,0.47971,3335.9,3335.7,0.47972]
[1737823680733,0.47971,3335.9,3335.8,0.47971]
[1737823680931,0.47972,3335.8,3335.3,0.52]
[1737823681130,0.47971,3335.9,3335.7,0.47972]
[1737823681431,1.4878,3336.0,3335.5,0.47975]
[1737823681432,0.47974,3335.6,3335.5,0.47975]
[1737823681634,0.47974,3335.6,3335.5,0.48424896]
[1737823681934,0.47974,3335.6,3335.5,0.00449896]
[1737823683030,3.2078,3335.7,3335.5,0.00449896]
[1737823683225,0.47974,3335.7,3335.6,0.47974]
[1737823683431,0.47974,3335.7,3335.5,0.00449896]
[1737823683432,0.47974,3335.6,3335.5,0.00449896]
[1737823684438,0.47974,3335.6,3335.5,0.48424896]
[1737823684836,0.96,3335.6,3335.5,0.48424896]
[1737823685036,4.64753,3335.7,3335.6,0.47974]
[1737823685432,4.64753,3335.7,3335.5,0.00449896]
[1737823685433,3.2078,3335.7,3335.5,0.00449896]
[1737823685633,0.96,3335.7,3335.6,0.47974]
[1737823686745,1.4878,3336.0,3335.9,0.4797]
[1737823686933,0.4925,3336.0,3335.9,0.4797]
[1737823687539,0.00449896,3336.1,3335.7,0.9779]
[1737823687832,0.00449896,3336.1,3336.0,3.68748]
[1737823688733,0.00449896,3336.1,3336.0,4.03565447]
[1737823689837,0.00449896,3336.1,3336.0,4.0357641]
[1737823690043,0.00449896,3336.1,3336.0,3.68748]
[1737823691333,0.00449896,3336.1,3336.0,4.03597678]
[1737823692442,0.00449896,3336.1,3336.0,9.03597678]
[1737823692631,1e-08,3336.1,3336.0,9.03597678]
[1737823692835,1e-08,3336.1,3336.0,9.48665362]
[1737823693742,1e-08,3336.1,3336.0,9.48675554]
[1737823693937,1e-08,3336.1,3336.0,9.13815684]
[1737823694544,1e-08,3336.1,3336.0,8.68748]
[1737823698338,1e-08,3336.1,3336.0,3.68748]
[1737823701053,1e-08,3336.1,3336.0,4.03633306]
[1737823701757,1e-08,3336.1,3336.0,4.48745763]
[1737823703554,1e-08,3336.1,3336.0,4.48752231]
[1737823705347,1e-08,3336.1,3336.0,4.4877323]
[1737823707255,1e-08,3336.1,3336.0,4.48771567]
[1737823709261,1e-08,3336.1,3336.0,4.48796204]
[1737823710357,1e-08,3336.1,3336.0,3.2078]
[1737823710666,0.4797,3335.9,3335.8,0.4797]
[1737823710959,0.96,3336.0,3335.3,1.19946]
[1737823711162,0.96,3336.0,3335.9,0.4797]
[1737823713464,0.96,3336.0,3335.5,1.20388896]
[1737823713465,0.96,3336.0,3335.5,0.00449896]
[1737823713663,0.47971,3335.8,3335.7,0.47972]
[1737823713964,0.47973,3335.7,3335.6,0.47973]
[1737823714163,0.4934,3335.7,3335.5,0.00449896]
[1737823714362,0.4934,3335.7,3335.6,0.47973]
[1737823716259,0.4934,3335.7,3335.6,1.3332639]
[1737823716962,3.20780001,3336.1,3336.0,0.47968]
[1737823717466,3.67950001,3336.1,3336.0,0.47968]
[1737823717667,3.67950001,3336.1,3336.0,0.82929325]
[1737823718860,3.67950001,3336.1,3336.0,0.829268]
[1737823719060,3.67950001,3336.1,3336.0,0.82927012]
[1737823719263,3.67950001,3336.1,3336.0,0.82928062]
[1737823719461,3.67950001,3336.1,3336.0,0.47968]
[1737823719863,3.67950001,3336.1,3336.0,0.82926292]
[1737823720064,0.47170001,3336.1,3336.0,0.82926292]
[1737823720866,0.47170001,3336.1,3336.0,0.82925995]
[1737823722570,0.47170001,3336.1,3336.0,4.03705995]
[1737823722770,1e-08,3336.1,3336.0,4.48653973]
[1737823723067,4.1678,3337.3,3337.2,0.47951]
[1737823723867,0.4875,3337.5,3336.9,1.19889]
[1737823724069,0.4875,3337.5,3337.4,0.47948]
[1737823724272,0.00449896,3337.6,3337.5,0.47947]
[1737823726069,0.00449896,3337.6,3337.5,0.82830829]
[1737823726376,0.00449896,3337.6,3337.5,0.47947]
[1737823727078,0.00449896,3337.6,3337.5,0.82809638]
[1737823727266,0.00449896,3337.6,3337.5,0.47947]
[1737823727876,0.00449896,3337.6,3337.5,0.82790793]
[1737823728174,3.2078,3337.9,3337.5,0.82790793]
[1737823728175,3.2078,3337.9,3337.8,0.47942]
[1737823728968,3.2078,3337.9,3337.8,0.97412]
[1737823729780,0.00449896,3338.2,3338.1,0.47938]
[1737823738380,0.00449896,3338.2,3337.9,3.2078]
[1737823738684,0.47939,3338.1,3337.9,3.6872]
[1737823739072,0.4929,3338.0,3337.9,3.6872]
[1737823741478,0.4929,3338.0,3337.9,3.2078]
[1737823741677,0.4929,3338.0,3337.4,3.2078]
[1737823741678,0.47947,3337.5,3337.4,3.2078]
[1737823742080,0.47946,3337.6,3337.4,3.68727]
[1737823742285,0.9774,3337.5,3337.4,3.68727]
[1737823743780,13.71413258,3337.5,3335.5,3.2078]
[1737823743979,3.68745,3336.3,3335.9,0.47969]
[1737823744187,3.68745,3336.3,3335.2,0.9942]
[1737823744188,4.1678,3336.3,3335.2,0.9942]
[1737823744378,3.2078,3335.9,3335.3,40.8]
[1737823744680,3.2078,3335.9,3335.8,0.47971]
[1737823745689,3.2078,3335.9,3335.7,0.47972]
[1737823745878,3.6875,3335.9,3335.6,0.47973]
[1737823746078,3.2078,3335.9,3335.7,0.47972]
[1737823746274,3.2078,3335.9,3335.6,0.47973]
[1737823746473,3.6875,3335.9,3335.6,0.47973]
[1737823746788,3.6875,3335.9,3335.7,0.47972]
[1737823746987,3.2078,3335.9,3335.8,0.47971]
[1737823747384,3.2078,3335.9,3335.5,0.00449896]
[1737823747689,3.2078,3335.9,3335.7,0.47972]
[1737823747878,3.2078,3335.9,3335.5,0.00449896]
[1737823747879,3.2078,3335.9,3335.8,0.47971]
[1737823748682,3.2078,3338.1,3335.8,13.70473258]
[1737823748892,3.2078,3338.5,3337.7,2.26446629]
[1737823749087,0.4821,3338.8,3338.6,0.47929]
[1737823749284,3.2078,3338.9,3338.0,2.26446629]
[1737823749691,3.2078,3338.9,3338.8,0.47928]
[1737823749988,3.2078,3338.9,3338.3,3.2078]
[1737823750188,3.2078,3338.9,3338.5,0.00449896]
[1737823750189,0.47928,3338.8,3338.5,0.00449896]
[1737823750584,3.2078,3338.9,3338.5,0.00449896]
[1737823750785,0.47931,3338.6,3338.5,0.00449896]
[1737823750984,3.2078,3338.9,3338.5,0.00449896]
[1737823751287,3.2078,3338.9,3337.4,3.2078]
[1737823751288,0.5186,3338.8,3337.4,3.2078]
[1737823751591,0.47937,3338.2,3337.8,0.47942]
[1737823752091,3.2078,3338.4,3337.5,40.8]
[1737823752392,0.47937,3338.3,3337.8,0.47941]
[1737823752588,0.47937,3338.3,3337.5,40.8]
[1737823752790,0.47937,3338.3,3337.9,0.47941]
[1737823752982,3.68714,3338.4,3338.1,0.47938]
[1737823753181,3.2078,3338.4,3338.1,0.47938]
[1737823753390,3.2078,3338.4,3338.2,0.47936]
[1737823753588,3.2078,3338.4,3337.6,0.00449896]
[1737823753786,3.2078,3338.4,3338.1,0.47937]
[1737823753986,3.68714,3338.4,3338.1,0.47937]
[1737823754387,3.2078,3338.4,3338.1,0.47937]
[1737823754592,3.68714,3338.4,3338.1,0.47937]
[1737823754889,3.2078,3338.4,3338.1,0.47937]
[1737823755094,3.2078,3338.4,3337.6,0.00449896]
[1737823755296,3.2078,3338.4,3338.1,0.47937]
[1737823755688,3.68715,3338.4,3338.1,0.47937]
[1737823756199,3.2078,3338.4,3338.2,0.47937]
[1737823756589,3.2078,3338.4,3338.3,0.47935]
[1737823757292,0.983,3338.6,3337.8,0.49]
[1737823757594,3.7264,3338.8,3338.7,0.47929]
[1737823757989,3.2078,3338.8,3338.7,0.47929]
[1737823758189,2.98349896,3339.2,3338.4,3.2078]
[1737823758190,0.00449896,3339.2,3338.4,3.2078]
[1737823758390,3.21229896,3339.2,3339.1,0.47924]
[1737823758690,0.00449896,3339.2,3339.1,0.47924]
[1737823764301,0.00449896,3339.2,3338.7,0.49]
[1737823764501,0.00449896,3339.2,3339.0,0.47925]
[1737823764804,0.48371896,3339.2,3338.9,0.47926]
[1737823765207,0.00449896,3339.2,3339.0,0.47925]
[1737823765698,0.00449896,3339.2,3338.7,0.49]
[1737823765898,0.00449896,3339.2,3339.1,0.47924]
[1737823768298,2.92985747,3340.2,3339.1,6.13765747]
[1737823768299,3.2078,3340.2,3339.1,6.13765747]
[1737823768503,0.47903,3340.6,3339.6,1.19791]
[1737823768806,0.47907,3340.3,3340.0,0.4791]
[1737823769002,3.2078,3340.4,3339.7,0.52]
[1737823769203,0.47909,3340.2,3339.8,0.47914]
[1737823769396,0.47909,3340.2,3339.9,0.47911]
[1737823769601,0.4791,3340.1,3339.7,0.52449216]
[1737823770106,0.4791,3340.1,3339.8,0.47912]
[1737823770694,0.4791,3340.1,3339.9,0.47912]
[1737823771110,0.4791,3340.1,3339.8,0.47913]
[1737823771912,4.1898,3340.3,3339.7,1.00363216]
[1737823772112,3.2078,3339.9,3339.7,0.00449216]
[1737823772303,0.47914,3339.8,3339.7,0.00449216]
[1737823774607,3.68693,3339.9,3339.7,0.00449216]
[1737823775002,3.68693,3339.9,3339.7,0.48364216]
[1737823775311,3.2078,3339.9,3339.8,0.47914]
[1737823776300,0.47908,3340.2,3340.0,0.4791]
[1737823776610,0.4791,3340.1,3339.9,0.47912]
[1737823777311,0.47909,3340.2,3339.8,0.47914]
[1737823777609,5.1354,3340.3,3339.7,0.00449216]
[1737823777815,0.47909,3340.2,3340.0,0.47911]
[1737823778307,0.47909,3340.2,3339.7,0.00449216]
[1737823778606,4.63547,3340.3,3340.1,0.47909]
[1737823778813,0.47908,3340.2,3340.1,0.47909]
[1737823779202,0.47908,3340.2,3340.0,0.4791]
[1737823779611,5.1334,3340.3,3339.7,0.00449216]
[1737823779811,0.47909,3340.1,3339.9,0.47911]
[1737823780113,5.1334,3340.3,3339.7,0.00449216]
[1737823780308,0.47914,3339.8,3339.7,0.00449216]
[1737823781818,0.47914,3339.8,3339.7,0.48364216]
[1737823782113,0.47914,3339.8,3339.7,0.00449216]
[1737823782907,0.47914,3339.8,3339.7,0.48364216]
[1737823783314,0.47914,3339.8,3339.7,0.00449216]
[1737823783615,7.27405715,3339.8,3338.7,3.2078]
[1737823783912,3.2078,3339.0,3338.7,0.4893]
[1737823784217,2.27405715,3338.9,3337.7,4.40638]
[1737823784412,3.2078,3338.1,3337.8,0.4733]
[1737823784617,2.27405715,3337.9,3337.3,0.4733]
[1737823784814,2.27405715,3337.9,3337.3,0.95279]
[1737823784815,3.2078,3337.5,3337.3,0.95279]
[1737823785011,3.2078,3337.9,3337.4,0.47947]
[1737823785314,3.68721,3337.9,3337.4,0.47947]
[1737823786015,3.2078,3337.9,3337.3,0.4733]
[1737823786213,0.47947,3337.5,3337.2,0.52]
[1737823786717,0.47949,3337.4,3337.2,0.52]
[1737823786918,5.48185715,3337.9,3337.2,0.52]
[1737823787211,0.47942,3337.8,3337.2,0.52]
[1737823787416,0.47946,3337.6,3337.2,0.52]
[1737823787611,5.48185715,3337.9,3337.2,0.52]
[1737823787806,0.47944,3337.7,3337.2,0.9995]
[1737823788012,3.2078,3337.9,3337.2,0.52]
[1737823788709,3.2078,3337.9,3337.4,0.47948]
[1737823788912,0.47943,3337.8,3337.4,0.47948]
[1737823789113,3.68721,3337.9,3337.4,0.47948]
[1737823789806,3.68722,3337.9,3337.4,0.47948]
[1737823790111,3.68722,3337.9,3337.2,0.52]
[1737823790112,0.47946,3337.6,3337.2,0.52]
[1737823790309,0.47947,3337.5,3337.2,0.52]
[1737823790713,3.2078,3337.9,3337.2,0.52]
[1737823791014,0.47951,3337.2,3337.1,0.00449216]
[1737823791408,1.45751,3337.2,3337.1,0.00449216]
[1737823792405,1.45751,3337.2,3336.2,3.44283423]
[1737823792406,1.4697,3337.2,3336.2,0.5102]
[1737823792614,3.2078,3336.3,3336.2,0.5102]
[1737823793715,3.2078,3336.3,3336.2,0.98985]
[1737823795916,3.2078,3336.3,3335.9,0.00449216]
[1737823796416,3.68744,3336.3,3335.9,0.48417216]
[1737823797112,3.2078,3336.3,3335.9,0.48417216]
[1737823797309,4.1868,3336.3,3335.9,0.00449216]
[1737823797516,0.47968,3336.1,3335.9,0.00449216]
[1737823797918,4.1868,3336.3,3335.9,0.00449216]
[1737823798121,4.1868,3336.3,3336.0,0.47968]
[1737823799718,4.1868,3336.3,3335.9,0.00449216]
[1737823799917,3.2078,3336.3,3336.2,0.47965]
[1737823800423,0.00449216,3336.6,3336.4,0.47962]
[1737823800622,0.00449216,3336.6,3336.5,0.47961]
[1737823800811,0.00449216,3336.6,3336.4,0.47962]
[1737823801012,0.00449216,3336.6,3336.5,0.4844]
[1737823801819,0.00449216,3336.6,3336.5,0.96401]
[1737823802526,4.1868,3337.3,3337.2,0.47951]
[1737823802724,3.2078,3337.3,3337.2,0.47951]
[1737823804025,0.00449216,3337.6,3337.5,0.47947]
[1737823805725,0.00449216,3337.6,3337.5,0.95347]
[1737823807323,0.00449216,3337.6,3337.5,0.474]
[1737823807526,0.00449216,3337.6,3337.5,0.95347]
[1737823809122,0.00449216,3337.6,3337.0,0.5152]
[1737823809421,3.2078,3337.4,3337.3,0.4795]
[1737823809928,0.47948,3337.5,3337.3,0.4795]
[1737823810124,0.00449216,3337.6,3337.3,0.4795]
[1737823810323,0.00449216,3337.6,3337.4,0.47947]
[1737823810726,0.47949,3337.4,3337.1,0.47952]
[1737823811022,3.2078,3337.4,3337.0,0.4855]
[1737823811227,3.2078,3337.4,3337.3,0.4795]
[1737823812028,6.14043423,3337.4,3336.6,0.4796]
[1737823812322,6.14043423,3337.4,3336.1,4.71095]
[1737823812323,3.2078,3336.9,3336.1,4.71095]
[1737823812528,3.2078,3336.5,3336.1,3.7285]
[1737823812729,0.47965,3336.2,3336.1,3.7285]
[1737823812929,3.2078,3336.5,3336.1,3.7285]
[1737823813230,0.47965,3336.2,3336.1,3.2078]
[1737823813432,0.47965,3336.2,3335.9,0.48418216]
[1737823813729,3.2078,3336.5,3335.9,0.00449216]
[1737823814026,0.47964,3336.3,3336.1,0.47966]
[1737823814223,0.47964,3336.3,3335.9,0.00449216]
[1737823814629,0.47964,3336.3,3336.1,0.47966]
[1737823814827,0.47963,3336.4,3335.9,0.00449216]
[1737823815123,3.2078,3336.5,3336.4,0.47962]
[1737823816122,3.2078,3336.5,3336.4,41.27962]
[1737823817231,3.2078,3336.5,3336.4,0.47962]
[1737823820431,3.2078,3336.9,3336.8,0.47957]
[1737823822135,3.2078,3336.9,3336.5,0.4728]
[1737823822332,3.68736,3336.9,3336.7,0.47957]
[1737823822729,3.68736,3336.9,3336.5,0.4728]
[1737823822928,3.2078,3336.9,3336.8,0.47957]
[1737823825335,3.2078,3337.3,3336.5,0.4728]
[1737823825534,3.2078,3337.3,3337.2,0.47951]
[1737823826944,3.2078,3337.3,3337.1,0.47952]
[1737823827144,0.47951,3337.2,3337.0,0.47954]
[1737823827445,3.6873,3337.3,3336.6,1.6786]
[1737823827646,3.2078,3337.3,3336.5,0.4728]
[1737823828247,0.47952,3337.2,3337.1,0.47952]
[1737823828543,0.47952,3337.1,3337.0,0.47953]
[1737823828748,0.47952,3337.2,3337.0,0.47953]
[1737823828947,0.47952,3337.2,3336.5,1.67182]
[1737823828948,0.47952,3337.2,3337.1,0.47952]
[1737823829148,3.2078,3337.3,3336.5,1.67182]
[1737823829348,3.2078,3337.3,3337.0,0.47953]
[1737823829349,0.47952,3337.2,3337.0,0.47953]
[1737823829549,0.47952,3337.2,3337.1,0.47952]
[1737823829748,3.2078,3337.3,3336.5,0.4728]
[1737823829951,0.47951,3337.2,3337.0,0.47953]
[1737823831049,0.47951,3337.2,3336.5,1.67182]
[1737823831247,0.47951,3337.2,3337.0,0.47953]
[1737823831645,3.2078,3337.3,3336.5,0.4728]
[1737823831646,0.47954,3337.1,3336.5,0.4728]
[1737823831943,0.47954,3337.1,3337.0,0.47954]
[1737823832145,0.47952,3337.2,3337.0,0.47954]
[1737823832544,3.2078,3337.3,3336.6,0.45073537]
[1737823832742,3.2078,3336.9,3335.9,3.21229216]
[1737823832946,0.47966,3336.2,3336.1,0.47966]
[1737823833147,3.2078,3336.4,3335.9,3.72519216]
[1737823833454,0.47964,3336.3,3336.0,0.47968]
[1737823833652,0.47967,3336.2,3335.9,3.72519216]
[1737823833852,0.47965,3336.3,3336.1,0.47967]
[1737823834158,0.47965,3336.3,3335.9,3.72519216]
[1737823834343,0.47965,3336.3,3336.2,0.47965]
[1737823836444,3.68743,3336.4,3336.3,0.47964]
[1737823837051,3.2078,3336.4,3336.3,0.47964]
[1737823838159,0.47964,3336.3,3336.2,0.47965]
[1737823838351,3.68743,3336.4,3336.3,0.47964]
[1737823838857,3.2078,3336.4,3336.3,0.47964]
[1737823839556,3.6915,3336.8,3335.9,3.72519216]
[1737823839752,3.2078,3336.8,3336.7,0.47958]
[1737823841846,0.973,3337.0,3336.9,0.47955]
[1737823842247,3.68732,3337.2,3337.1,0.47952]
[1737823842649,3.2078,3337.2,3336.5,0.5046]
[1737823842850,0.47954,3337.0,3336.9,0.47954]
[1737823843154,0.47954,3337.0,3336.9,0.47955]
[1737823843358,0.47957,3336.8,3336.7,0.47958]
[1737823843655,3.2078,3336.8,3336.7,0.47958]
[1737823844357,3.2078,3337.2,3337.1,0.47952]
[1737823844553,3.2078,3337.2,3336.6,2.7703968]
[1737823844750,0.47954,3337.0,3336.9,0.47955]
[1737823845259,3.2078,3337.2,3336.6,0.4918]
[1737823845558,0.47958,3336.7,3336.6,0.97139]
[1737823845959,3.68738,3336.8,3336.6,0.97139]
[1737823846257,3.68738,3336.8,3336.6,0.4918]
[1737823846459,3.2078,3336.8,3336.7,0.47958]
[1737823846653,3.68737,3336.8,3336.7,0.47958]
[1737823847455,3.2078,3336.8,3336.7,0.47958]
[1737823848350,3.2078,3336.8,3336.6,0.4918]
[1737823848549,0.47958,3336.7,3336.6,0.4918]
[1737823850559,4.40673,3336.8,3336.1,0.4971]
[1737823850764,0.47965,3336.2,3336.1,0.5169]
[1737823850962,0.47965,3336.2,3336.1,0.86830989]
[1737823851664,0.47965,3336.2,3336.1,0.5169]
[1737823854662,0.47965,3336.2,3336.1,0.99657]
[1737823855259,3.2078,3336.4,3336.3,0.47964]
[1737823856365,3.68737,3336.8,3336.7,0.47958]
[1737823856762,0.47958,3336.7,3336.6,0.47959]
[1737823857262,0.4796,3336.6,3336.5,0.4796]
[1737823857964,3.2078,3336.8,3336.2,0.4779]
[1737823858169,0.47964,3336.3,3336.2,0.4779]
[1737823858669,0.5217,3336.7,3336.2,0.4779]
[1737823858965,0.47963,3336.4,3336.3,0.47964]
[1737823859562,3.2078,3336.8,3336.2,0.4779]
[1737823859757,0.47959,3336.7,3336.6,0.47958]
[1737823861067,0.47959,3336.7,3336.6,0.83112824]
[1737823861367,0.47959,3336.7,3336.6,0.47958]
[1737823861561,3.2078,3336.8,3336.7,0.47958]
[1737823861766,3.2078,3336.8,3336.7,1.28251022]
[1737823861974,3.2078,3336.8,3336.7,0.93090885]
[1737823862371,3.2078,3336.8,3336.4,0.4905]
[1737823862668,3.2078,3336.8,3336.5,0.3516744]
[1737823862862,3.68737,3336.8,3336.7,0.47958]
[1737823863165,3.2078,3336.8,3336.7,0.47958]
[1737823863368,3.2078,3336.8,3336.2,0.4779]
[1737823863567,0.4796,3336.6,3336.5,0.4796]
[1737823863767,0.4796,3336.6,3336.5,0.83127197]
[1737823865167,3.2078,3336.8,3336.2,0.4779]
[1737823865367,0.47962,3336.4,3336.3,0.35165537]
[1737823865561,1.19896,3336.7,3336.2,0.4779]
[1737823865767,0.47964,3336.3,3336.2,0.4779]
[1737823865969,0.47964,3336.3,3336.2,0.82940003]
[1737823866367,0.47964,3336.3,3336.2,0.82923452]
[1737823866573,0.47964,3336.3,3336.2,0.35133452]
[1737823868366,0.47962,3336.4,3336.2,0.35108096]
[1737823868572,0.47967,3336.2,3336.0,0.47967]
[1737823868768,0.47967,3336.2,3336.1,0.35111421]
[1737823868968,0.5055,3336.5,3336.0,0.47967]
[1737823869273,0.5055,3336.5,3335.9,0.48418216]
[1737823869274,0.47968,3336.0,3335.9,0.48418216]
[1737823869774,0.5055,3336.5,3336.0,0.47968]
[1737823869775,0.47968,3336.1,3336.0,0.47968]
[1737823869964,0.47968,3336.1,3336.0,0.35127767]
[1737823870560,0.47968,3336.1,3336.0,0.83095767]
[1737823871868,0.47966,3336.2,3336.1,0.47966]
[1737823872067,0.5055,3336.5,3336.1,0.35127767]
[1737823872364,0.47963,3336.4,3336.3,0.47963]
[1737823873174,0.5055,3336.5,3335.9,0.00449216]
[1737823873371,0.47962,3336.4,3336.2,0.47964]
[1737823873569,0.47962,3336.4,3335.9,0.00449216]
[1737823873570,0.47962,3336.4,3336.3,0.47964]
[1737823873976,3.2078,3336.8,3336.0,3.4778068]
[1737823874176,0.965,3336.7,3336.5,0.4796]
[1737823874481,0.47962,3336.5,3336.0,2.2785968]
[1737823874774,0.47962,3336.5,3336.4,0.47962]
[1737823875774,1.44459,3336.7,3336.6,0.4796]
[1737823875975,3.2078,3336.8,3336.1,1.19918]
[1737823876171,4.1728,3336.8,3336.7,0.47958]
[1737823876576,4.65237,3336.8,3336.7,0.47958]
[1737823876868,4.65238,3336.8,3336.4,0.47962]
[1737823877072,4.65238,3336.8,3336.3,0.4784]
[1737823877273,4.65238,3336.8,3336.6,0.47958]
[1737823877874,4.65238,3336.8,3336.7,0.47958]
[1737823879278,4.1728,3336.8,3336.3,0.4784]
[1737823879575,0.47962,3336.4,3336.3,0.95803]
[1737823879777,0.47962,3336.4,3336.3,0.35186297]
[1737823879972,0.47966,3336.2,3336.1,0.47966]
[1737823880171,0.47966,3336.2,3336.1,0.83153006]
[1737823880371,3.3126968,3336.7,3336.1,0.35187006]
[1737823880568,0.47964,3336.4,3336.3,0.47964]
[1737823880768,1.0341,3336.7,3335.9,0.52149216]
[1737823880974,0.47959,3336.7,3336.5,0.4796]
[1737823881177,0.47959,3336.7,3336.6,0.4796]
[1737823882072,4.65037,3336.8,3336.7,0.47958]
[1737823882271,3.2078,3336.8,3336.7,0.47958]
[1737823884979,0.47958,3336.7,3336.6,0.47959]
[1737823885380,0.47958,3336.7,3336.6,0.83143867]
[1737823885580,3.2078,3336.8,3336.5,0.4796]
[1737823885881,0.4796,3336.6,3336.5,0.4796]
[1737823886077,0.4796,3336.6,3336.5,0.83146761]
[1737823886381,3.697,3336.8,3336.5,0.35186761]
[1737823886575,0.47959,3336.7,3336.6,0.83145761]
[1737823886775,0.47959,3336.7,3336.6,0.35186761]
[1737823887183,0.4796,3336.6,3336.5,0.4796]
[1737823887373,0.4796,3336.6,3336.5,0.83143849]
[1737823888481,3.2078,3336.8,3336.5,0.35183849]
[1737823888682,3.68737,3336.8,3336.7,0.47958]
[1737823888880,3.2078,3336.8,3336.1,1.19917]
[1737823889179,0.47959,3336.7,3336.6,0.47959]
[1737823891470,3.2078,3336.8,3336.0,2.2785968]
[1737823891675,3.2078,3336.8,3336.7,0.47958]
[1737823894087,3.68737,3336.8,3336.7,0.47958]
[1737823894883,3.2078,3336.8,3336.7,0.47958]
[1737823895082,3.2078,3336.8,3336.7,0.83158958]
[1737823895888,3.2078,3336.8,3336.7,1.28336247]
[1737823896387,0.961,3337.0,3336.9,0.47955]
[1737823896686,3.21229216,3337.6,3336.9,2.63048469]
[1737823896894,3.21229216,3337.6,3337.5,0.47947]
[1737823897284,3.21229216,3337.6,3337.2,0.5207]
[1737823897585,0.47948,3337.5,3337.3,0.4967]
[1737823897785,3.21229216,3337.6,3337.0,0.96613]
[1737823897786,0.47952,3337.1,3337.0,0.96613]
[1737823898096,5.49088896,3337.6,3336.4,4.40686]
[1737823898097,0.47956,3336.9,3336.7,0.97627]
[1737823898289,0.5127,3337.0,3336.5,0.4866]
[1737823898488,0.47958,3336.8,3336.6,0.47959]
[1737823898989,0.47958,3336.8,3336.6,0.47958]
[1737823900081,0.47958,3336.7,3336.6,0.47958]
[1737823900392,0.961,3336.8,3336.5,0.4866]
[1737823900584,1.44057,3336.8,3336.7,0.47958]
[1737823901292,0.961,3336.8,3336.7,0.47958]
[1737823903992,1.44057,3336.8,3336.7,0.47958]
[1737823904197,0.961,3336.8,3336.7,0.47958]
[1737823905200,1.44057,3336.8,3336.7,0.47958]
[1737823905990,0.961,3336.8,3336.7,0.47958]
[1737823906395,0.961,3336.8,3336.7,0.83146455]
[1737823906596,0.961,3336.8,3336.7,0.47958]
[1737823906799,0.47959,3336.7,3336.6,0.47959]
[1737823906997,0.47959,3336.7,3336.6,0.83148078]
[1737823907398,1.4469,3336.8,3336.6,0.83148078]
[1737823907586,1.92647,3336.8,3336.7,0.47958]
[1737823908187,1.4469,3336.8,3336.4,3.7045]
[1737823908388,3.2078,3336.7,3336.3,0.47963]
[1737823908696,3.2078,3336.7,3335.9,3.21229216]
[1737823908697,5.4863968,3336.7,3335.9,0.00449216]
[1737823908897,3.2078,3336.3,3336.1,0.47966]
[1737823909096,3.68745,3336.3,3336.2,0.35195076]
[1737823909494,3.2078,3336.3,3336.1,0.47966]
[1737823909802,0.5006,3336.2,3336.1,0.47966]
[1737823909999,0.98025,3336.2,3336.1,0.47966]
[1737823910202,0.98026,3336.2,3336.0,0.47967]
[1737823910596,0.98026,3336.2,3336.1,0.35182946]
[1737823910907,0.98026,3336.2,3336.1,0.35181938]
[1737823912405,0.5006,3336.2,3336.1,0.35181938]
[1737823912699,0.5006,3336.2,3336.1,0.47967]
[1737823912898,0.98025,3336.2,3336.1,0.35174977]
[1737823913110,0.98025,3336.2,3336.1,0.83141977]
[1737823914600,0.5006,3336.2,3336.1,0.83141977]
[1737823914801,0.5006,3336.2,3336.1,0.8313683]
[1737823915101,3.68745,3336.3,3336.2,0.47965]
[1737823915498,3.2078,3336.3,3336.2,0.47965]
[1737823915702,3.2078,3336.3,3336.2,0.83131011]
[1737823916701,3.2078,3336.3,3336.2,0.83129752]
[1737823917906,0.9903,3336.6,3336.5,0.47961]
[1737823918210,3.2078,3336.7,3336.6,0.4796]
[1737823918502,4.1688,3336.7,3336.6,0.4796]
[1737823919207,4.1688,3336.7,3336.6,0.83120589]
[1737823920504,4.64838,3336.7,3336.6,0.4796]
[1737823920701,4.1688,3336.7,3336.4,0.476]
[1737823921010,4.64839,3336.7,3336.6,0.4796]
[1737823921905,4.1688,3336.7,3336.6,0.4796]
[1737823922209,4.64838,3336.7,3336.6,0.4796]
[1737823925408,4.1688,3336.7,3336.4,0.476]
[1737823925708,0.4796,3336.6,3336.5,0.4796]
[1737823926213,4.64839,3336.7,3336.6,0.4796]
[1737823926411,4.1688,3336.7,3336.6,0.4796]
[1737823927011,4.64838,3336.7,3336.6,0.4796]
[1737823927211,0.4796,3336.6,3336.5,0.4796]